bitfinex/quotes_SOLUSD_20250624
["timestamp","ask_amount","ask_price","bid_price","bid_amount"]
[1750808631087,6.25855287,145.69,145.66,88.7]
[1750808632594,6.25855287,145.69,145.65,5.57214794]
[1750808632792,6.25855287,145.69,145.65,88.7]
[1750808633982,0.68640493,145.69,145.66,5.57214794]
[1750808634398,7.95571992,145.72,145.65,88.7]
[1750808634399,11.81214794,145.72,145.67,5.57214794]
[1750808634599,5.57214794,145.71,145.65,95.56572221]
[1750808634896,5.57214794,145.71,145.67,5.57214794]
[1750808635083,6.25845133,145.71,145.67,5.57214794]
[1750808635790,0.68630339,145.71,145.67,5.57214794]
[1750808636596,6.25845133,145.71,145.67,5.57214794]
[1750808636892,6.25845133,145.71,145.65,32.86577411]
[1750808637094,6.25845133,145.71,145.67,5.57214794]
[1750808637486,0.68630339,145.71,145.67,5.57214794]
[1750808638979,6.92625805,145.72,145.68,5.57214794]
[1750808640191,6.92625805,145.72,145.68,12.43645401]
[1750808640192,6.24,145.72,145.68,12.43645401]
[1750808640402,6.24,145.72,145.7,5.57214794]
[1750808641898,6.24,145.72,145.71,5.57214794]
[1750808642400,6.24,145.72,145.7,5.57214794]
[1750808646379,6.24,145.72,145.7,94.27214794]
[1750808646577,6.24,145.72,145.7,88.7]
[1750808646882,6.24,145.72,145.66,148.9]
[1750808646883,6.24,145.72,145.68,5.57214794]
[1750808647083,6.24,145.72,145.66,95.56514254]
[1750808647277,6.24,145.72,145.68,5.57214794]
[1750808647780,5.57214794,145.71,145.67,5.57214794]
[1750808647988,5.57214794,145.69,145.65,88.7]
[1750808648300,5.57214794,145.68,145.65,88.7]
[1750808648610,6.25861519,145.68,145.65,88.7]
[1750808649603,0.68646725,145.68,145.65,88.7]
[1750808649904,6.25861519,145.68,145.65,88.7]
[1750808650487,19.33599065,145.7,145.65,94.27214794]
[1750808650691,5.57214794,145.69,145.65,94.27214794]
[1750808651782,0.68634179,145.7,145.65,94.27214794]
[1750808651985,0.68634179,145.7,145.65,88.7]
[1750808652215,6.25848973,145.7,145.66,5.57214794]
[1750808652419,6.25848973,145.7,145.65,88.7]
[1750808652728,5.57214794,145.68,145.65,88.7]
[1750808653938,5.57214794,145.69,145.65,88.7]
[1750808655224,0.68643602,145.68,145.64,94.27214794]
[1750808655904,5.57214794,145.7,145.66,5.57214794]
[1750808657118,0.68634179,145.7,145.67,5.57214794]
[1750808657526,0.68634179,145.7,145.63,6.86671702]
[1750808657709,6.25848973,145.7,145.66,5.57214794]
[1750808658803,34.30462868,145.71,145.66,5.57214794]
[1750808659137,34.75845602,145.71,145.67,5.57214794]
[1750808659321,39.87677662,145.71,145.67,5.57214794]
[1750808659804,39.87677662,145.71,145.66,5.57214794]
[1750808660006,39.87677662,145.71,145.66,31.57214794]
[1750808661747,39.87677662,145.71,145.67,5.57214794]
[1750808661939,34.75845602,145.71,145.67,5.57214794]
[1750808662421,5.12615254,145.7,145.67,5.57214794]
[1750808662620,5.12615254,145.7,145.66,5.57214794]
[1750808662829,34.75845602,145.71,145.66,5.57214794]
[1750808663017,5.12658128,145.7,145.66,5.57214794]
[1750808663214,5.12749482,145.69,145.66,5.57214794]
[1750808663417,5.12749482,145.7,145.66,5.57214794]
[1750808663650,5.12749482,145.69,145.66,5.57214794]
[1750808664043,5.81386203,145.7,145.66,5.57214794]
[1750808664246,6.25851515,145.7,145.66,5.57214794]
[1750808666549,6.25851515,145.7,145.65,32.86556304]
[1750808666753,5.12895158,145.69,145.65,5.57214794]
[1750808667054,5.12915191,145.69,145.65,94.27214794]
[1750808667265,6.25851515,145.7,145.65,94.27214794]
[1750808667555,5.12971009,145.69,145.65,94.27214794]
[1750808667720,0.68640686,145.69,145.65,94.27214794]
[1750808667918,0.68640686,145.69,145.65,101.13783267]
[1750808668142,0.68640686,145.69,145.66,5.57214794]
[1750808669052,0.68635888,145.7,145.66,5.57214794]
[1750808675853,29.18630215,145.71,145.67,5.57214794]
[1750808676155,5.1316032,145.7,145.67,5.57214794]
[1750808676452,29.18630215,145.71,145.67,5.57214794]
[1750808676651,5.13163695,145.7,145.67,5.57214794]
[1750808676856,29.18630215,145.71,145.67,5.57214794]
[1750808677032,5.13163695,145.7,145.68,5.57214794]
[1750808677356,29.18630215,145.71,145.68,5.57214794]
[1750808677668,5.1315796,145.7,145.69,5.57214794]
[1750808677870,6.92626794,145.72,145.69,5.57214794]
[1750808678165,6.24,145.72,145.71,5.57214794]
[1750808678335,11.37060677,145.72,145.71,5.57214794]
[1750808678534,6.24,145.72,145.71,5.57214794]
[1750808682139,6.24,145.72,145.71,12.43509488]
[1750808682455,5.12737233,145.77,145.71,12.43509488]
[1750808682637,5.12457952,145.77,145.74,5.57214794]
[1750808682843,7.00598189,145.78,145.74,5.57214794]
[1750808683042,5.12466558,145.77,145.71,6.86294694]
[1750808683254,12.57812983,145.78,145.73,5.57214794]
[1750808683459,5.1226651,145.77,145.73,5.57214794]
[1750808683664,5.12280235,145.77,145.73,5.57214794]
[1750808683852,5.12280235,145.77,145.74,5.57214794]
[1750808684462,17.70093218,145.78,145.74,5.57214794]
[1750808687375,12.57812983,145.78,145.74,5.57214794]
[1750808687552,17.70093218,145.78,145.74,5.57214794]
[1750808687751,5.57214794,145.77,145.73,5.57214794]
[1750808688076,12.12878424,145.78,145.73,5.57214794]
[1750808688368,17.70093218,145.78,145.73,5.57214794]
[1750808688576,12.57812983,145.78,145.73,5.57214794]
[1750808688874,12.57812983,145.78,145.74,5.57214794]
[1750808689176,7.00598189,145.78,145.74,5.57214794]
[1750808690072,6.32,145.78,145.75,5.57214794]
[1750808690662,7.00596924,145.78,145.73,6.86178525]
[1750808690857,12.57811718,145.78,145.74,5.57214794]
[1750808691855,12.57811718,145.78,145.72,121.56212951]
[1750808692060,5.57214794,145.77,145.73,5.57214794]
[1750808692370,12.57811718,145.78,145.74,5.57214794]
[1750808696480,7.00596924,145.78,145.74,5.57214794]
[1750808696674,12.57811718,145.78,145.74,5.57214794]
[1750808699865,7.00596924,145.78,145.75,5.57214794]
[1750808700364,12.57811718,145.78,145.74,5.57214794]
[1750808701263,6.32,145.78,145.74,5.57214794]
[1750808701467,6.32,145.78,145.74,95.56108881]
[1750808701685,6.32,145.78,145.76,5.57214794]
[1750808702884,6.32,145.78,145.75,5.57214794]
[1750808703088,6.32,145.78,145.76,5.57214794]
[1750808705391,7.00596568,145.78,145.74,88.7]
[1750808705687,12.57811362,145.78,145.73,95.85344794]
[1750808706066,6.32,145.78,145.75,5.57214794]
[1750808706287,6.32,145.78,145.76,5.57214794]
[1750808708167,7.00596911,145.78,145.75,5.57214794]
[1750808708386,7.00596911,145.78,145.74,5.57214794]
[1750808709480,6.32,145.78,145.75,5.57214794]
[1750808709788,7.0059674,145.78,145.75,5.57214794]
[1750808711570,7.0059674,145.78,145.74,88.7]
[1750808711773,12.57811534,145.78,145.74,94.27214794]
[1750808712790,12.57811534,145.78,145.74,88.7]
[1750808712991,5.57214794,145.77,145.74,88.7]
[1750808713495,0.68605927,145.76,145.74,88.7]
[1750808713966,7.0059731,145.78,145.74,94.27214794]
[1750808714170,6.32,145.78,145.76,5.57214794]
[1750808718197,6.32,145.78,145.75,5.57214794]
[1750808719287,7.00597072,145.78,145.75,5.57214794]
[1750808719494,6.50597072,145.78,145.75,5.57214794]
[1750808721299,5.82,145.78,145.76,5.57214794]
[1750808722898,5.82,145.78,145.76,12.43258164]
[1750808723477,0.6858026,145.82,145.77,5.57214794]
[1750808723677,5.13159238,145.81,145.79,5.57214794]
[1750808723900,5.13159238,145.8,145.76,13.11841507]
[1750808724093,6.9057501,145.83,145.79,5.57214794]
[1750808724399,5.13128112,145.82,145.8,5.57214794]
[1750808724599,5.13128112,145.81,145.8,5.57214794]
[1750808725099,6.9057501,145.83,145.8,5.57214794]
[1750808725400,5.13100224,145.82,145.8,5.57214794]
[1750808725596,6.9057501,145.83,145.8,5.57214794]
[1750808725597,6.22,145.83,145.8,5.57214794]
[1750808725801,5.13066972,145.82,145.8,5.57214794]
[1750808725994,6.22,145.83,145.8,5.57214794]
[1750808726183,5.13066972,145.82,145.8,5.57214794]
[1750808726390,6.22,145.83,145.8,5.57214794]
[1750808726578,5.13060338,145.82,145.8,5.57214794]
[1750808726779,6.22,145.83,145.8,5.57214794]
[1750808726988,5.13063325,145.82,145.8,5.57214794]
[1750808727189,6.22,145.83,145.8,5.57214794]
[1750808727383,5.12931551,145.82,145.8,5.57214794]
[1750808727587,6.90573418,145.83,145.8,5.57214794]
[1750808727881,5.12941575,145.82,145.8,5.57214794]
[1750808728077,6.90573418,145.83,145.8,5.57214794]
[1750808728289,5.12941575,145.82,145.8,5.57214794]
[1750808728583,6.90573418,145.83,145.8,5.57214794]
[1750808728794,5.12830906,145.82,145.8,5.57214794]
[1750808729100,0.68573418,145.83,145.8,5.57214794]
[1750808729277,5.12827961,145.82,145.8,5.57214794]
[1750808729485,0.68573418,145.83,145.8,5.57214794]
[1750808729786,5.12726673,145.82,145.8,5.57214794]
[1750808730004,0.68568975,145.84,145.8,5.57214794]
[1750808730206,5.12729538,145.83,145.8,5.57214794]
[1750808730402,5.12729538,145.82,145.8,5.57214794]
[1750808730601,0.68568975,145.84,145.8,5.57214794]
[1750808730801,5.12645596,145.83,145.81,5.57214794]
[1750808731002,5.12645596,145.82,145.81,5.57214794]
[1750808731195,5.12645596,145.82,145.8,5.57214794]
[1750808731491,0.68573738,145.83,145.8,5.57214794]
[1750808731693,5.12573204,145.82,145.8,5.57214794]
[1750808732007,0.68570405,145.84,145.81,5.57214794]
[1750808732206,5.12572381,145.83,145.81,5.57214794]
[1750808732393,0.68570405,145.84,145.81,5.57214794]
[1750808732704,5.1250347,145.83,145.81,5.57214794]
[1750808732905,5.1250347,145.82,145.81,5.57214794]
[1750808733303,5.1250347,145.83,145.81,5.57214794]
[1750808733509,0.68570405,145.84,145.81,5.57214794]
[1750808733706,5.12453749,145.83,145.81,5.57214794]
[1750808734010,0.68570405,145.84,145.81,5.57214794]
[1750808734305,5.12450298,145.83,145.81,5.57214794]
[1750808734506,0.68570405,145.84,145.81,5.57214794]
[1750808734690,5.12391499,145.83,145.81,5.57214794]
[1750808734894,0.68570405,145.84,145.81,5.57214794]
[1750808735085,5.12397883,145.83,145.81,5.57214794]
[1750808735280,0.68570405,145.84,145.81,5.57214794]
[1750808735479,5.12339975,145.83,145.81,5.57214794]
[1750808735689,0.68570405,145.84,145.81,5.57214794]
[1750808735902,5.12334132,145.83,145.81,5.57214794]
[1750808736206,0.68570405,145.84,145.81,5.57214794]
[1750808736399,5.12289829,145.83,145.81,5.57214794]
[1750808736598,0.68570405,145.84,145.81,5.57214794]
[1750808736800,5.12283984,145.83,145.81,5.57214794]
[1750808736996,0.68570405,145.84,145.81,5.57214794]
[1750808737193,5.12283984,145.83,145.81,5.57214794]
[1750808737394,0.68570405,145.84,145.81,5.57214794]
[1750808737597,5.12250478,145.83,145.81,5.57214794]
[1750808737810,0.68570405,145.84,145.8,5.57214794]
[1750808738108,5.12250517,145.83,145.8,5.57214794]
[1750808738418,6.25785199,145.84,145.8,5.57214794]
[1750808738598,5.80790257,145.83,145.8,5.57214794]
[1750808738911,5.80790257,145.83,145.79,94.27214794]
[1750808738912,5.12223803,145.82,145.79,94.27214794]
[1750808739416,5.57214794,145.84,145.81,5.57214794]
[1750808739417,0.68570348,145.84,145.81,5.57214794]
[1750808739612,5.12215508,145.83,145.81,5.57214794]
[1750808739811,0.68570348,145.84,145.81,5.57214794]
[1750808739993,5.12215426,145.83,145.81,5.57214794]
[1750808740188,0.68570348,145.84,145.81,5.57214794]
[1750808740390,5.12197597,145.83,145.81,5.57214794]
[1750808740607,0.68570348,145.84,145.81,5.57214794]
[1750808740807,5.12217867,145.83,145.81,5.57214794]
[1750808741009,0.68570348,145.84,145.81,5.57214794]
[1750808741208,5.12217906,145.83,145.81,5.57214794]
[1750808741408,6.90565207,145.85,145.82,5.57214794]
[1750808741605,5.1219918,145.84,145.82,5.57214794]
[1750808741808,6.90565207,145.85,145.82,5.57214794]
[1750808742104,5.12181468,145.84,145.82,5.57214794]
[1750808742306,6.90565207,145.85,145.82,3.54583077]
[1750808742498,5.12144245,145.84,145.82,3.54583077]
[1750808742699,6.90565207,145.85,145.82,3.54583077]
[1750808742906,5.12143855,145.84,145.82,3.54583077]
[1750808743107,6.90565207,145.85,145.82,3.54583077]
[1750808743301,5.12143033,145.84,145.82,3.54583077]
[1750808743505,6.90565207,145.85,145.81,3.54583077]
[1750808743817,5.12123732,145.84,145.81,3.54583077]
[1750808744018,6.90565207,145.85,145.81,3.54583077]
[1750808744210,5.12124595,145.84,145.81,3.54583077]
[1750808744420,6.90565207,145.85,145.81,3.54583077]
[1750808744635,8.66702253,145.84,145.79,88.7]
[1750808744801,8.66702253,145.83,145.79,3.54583077]
[1750808744994,5.12119176,145.82,145.79,3.54583077]
[1750808745306,3.54583077,145.84,145.79,3.54583077]
[1750808745501,5.12197569,145.83,145.79,3.54583077]
[1750808745700,5.12197569,145.82,145.79,3.54583077]
[1750808745902,3.54583077,145.84,145.8,3.54583077]
[1750808746100,5.80778919,145.83,145.8,3.54583077]
[1750808746291,5.12202594,145.82,145.8,3.54583077]
[1750808746487,0.68576325,145.83,145.8,3.54583077]
[1750808746708,5.12232123,145.82,145.8,3.54583077]
[1750808746913,4.23159402,145.83,145.78,88.7]
[1750808747118,3.54583077,145.81,145.78,88.7]
[1750808747300,3.54583077,145.81,145.76,118.24583077]
[1750808748100,5.80904833,145.8,145.76,118.24583077]
[1750808748617,5.12317586,145.8,145.76,125.10631241]
[1750808748800,5.80904739,145.8,145.76,125.10631241]
[1750808749120,5.80904739,145.8,145.77,3.54583077]
[1750808749721,3.54583077,145.78,145.75,3.41614723]
[1750808750206,6.23253009,145.78,145.75,3.41614723]
[1750808750723,11.35682998,145.78,145.74,5.54654417]
[1750808751515,11.35682998,145.78,145.74,10.32951777]
[1750808751516,5.12429989,145.78,145.74,10.32951777]
[1750808751722,6.16,145.79,145.77,5.54654417]
[1750808758913,6.16,145.79,145.76,114.7]
[1750808758914,6.16,145.79,145.76,120.24654417]
[1750808759116,6.16,145.79,145.77,5.54654417]
[1750808759319,6.84593292,145.79,145.77,5.54654417]
[1750808759514,6.16,145.79,145.76,88.7]
[1750808759807,6.84592199,145.79,145.76,94.24654417]
[1750808760434,5.12790354,145.78,145.76,94.24654417]
[1750808760608,6.84592199,145.79,145.76,94.24654417]
[1750808760905,5.12790354,145.78,145.76,94.24654417]
[1750808761102,6.84592199,145.79,145.76,94.24654417]
[1750808761320,5.12790395,145.78,145.76,94.24654417]
[1750808761541,6.84592199,145.79,145.77,5.54654417]
[1750808761934,6.16,145.79,145.77,5.54654417]
[1750808763629,6.16,145.79,145.76,94.24654417]
[1750808763937,6.16,145.79,145.77,5.54654417]
[1750808770146,6.16,145.79,145.78,5.54654417]
[1750808770327,5.12999158,145.83,145.78,3.54660278]
[1750808770540,5.12999158,145.82,145.81,3.54660278]
[1750808771260,6.16,145.84,145.81,3.54660278]
[1750808771416,5.12895838,145.83,145.82,3.54660278]
[1750808773440,6.16,145.84,145.82,3.54660278]
[1750808774250,6.16,145.84,145.82,5.54011689]
[1750808774962,6.16,145.84,145.81,6.85821113]
[1750808774963,6.16,145.84,145.83,5.54011689]
[1750808775157,11.28703899,145.84,145.83,5.54011689]
[1750808776163,11.28703899,145.84,145.82,5.54011689]
[1750808776454,6.16,145.84,145.82,5.54011689]
[1750808776642,6.16,145.84,145.83,5.54011689]
[1750808776842,11.28589315,145.84,145.83,5.54011689]
[1750808777445,6.16,145.84,145.83,5.54011689]
[1750808777762,6.16,145.84,145.82,5.54011689]
[1750808778540,6.16,145.84,145.81,94.24011689]
[1750808779465,6.84568299,145.84,145.81,94.24011689]
[1750808782364,6.84568299,145.84,145.81,5.54011689]
[1750808783461,5.12320657,145.83,145.81,5.54011689]
[1750808783653,6.84568299,145.84,145.81,5.54011689]
[1750808783852,6.84568299,145.84,145.8,88.7]
[1750808783853,5.12338292,145.83,145.8,94.24011689]
[1750808784153,5.54011689,145.83,145.8,88.7]
[1750808784354,5.12362518,145.82,145.8,88.7]
[1750808784761,5.54011689,145.83,145.8,88.7]
[1750808784963,5.12370494,145.82,145.8,88.7]
[1750808785161,5.54011689,145.83,145.8,88.7]
[1750808785465,5.12367593,145.82,145.8,88.7]
[1750808785667,6.22588887,145.83,145.8,88.7]
[1750808785872,6.22588887,145.83,145.77,26.0]
[1750808785873,6.16,145.84,145.82,5.54011689]
[1750808786045,6.16,145.84,145.83,5.54011689]
[1750808786251,6.16,145.84,145.79,26.0]
[1750808786449,6.16,145.84,145.83,5.54011689]
[1750808787058,6.16,145.84,145.79,26.68564606]
[1750808787260,6.16,145.84,145.82,5.54011689]
[1750808790871,5.1206396,145.85,145.82,5.54011689]
[1750808791769,5.1206396,145.85,145.8,32.85871056]
[1750808791959,0.68559638,145.86,145.83,5.54011689]
[1750808792162,5.1201487,145.85,145.83,5.54011689]
[1750808792875,5.80578991,145.85,145.83,5.54011689]
[1750808793174,0.68564121,145.85,145.82,5.54011689]
[1750808794264,0.68558892,145.86,145.82,5.54011689]
[1750808794561,5.12003955,145.85,145.82,5.54011689]
[1750808794762,0.68558892,145.86,145.82,5.54011689]
[1750808795065,5.12005476,145.85,145.82,5.54011689]
[1750808795266,0.68558892,145.86,145.82,5.54011689]
[1750808795465,5.120582,145.85,145.82,5.54011689]
[1750808795667,0.68558892,145.86,145.82,5.54011689]
[1750808795869,5.12067589,145.85,145.82,5.54011689]
[1750808796079,0.68558892,145.86,145.82,5.54011689]
[1750808796290,5.12067589,145.85,145.82,5.54011689]
[1750808796459,5.12067589,145.84,145.82,5.54011689]
[1750808797659,5.80635899,145.84,145.81,5.54011689]
[1750808797860,6.22579999,145.84,145.8,5.54011689]
[1750808798191,5.54011689,145.82,145.78,5.54011689]
[1750808798597,0.68582401,145.81,145.78,5.54011689]
[1750808798765,0.68582401,145.81,145.77,5.54011689]
[1750808798968,6.22590756,145.82,145.78,5.54011689]
[1750808799585,6.22590756,145.82,145.76,34.49892743]
[1750808799789,6.22590756,145.82,145.78,5.54011689]
[1750808801894,10.66454382,145.81,145.77,5.54011689]
[1750808802068,10.66454382,145.8,145.72,1.5956]
[1750808802270,5.12519244,145.79,145.76,5.54011689]
[1750808802464,5.54011689,145.8,145.76,5.54011689]
[1750808802671,5.54011689,145.79,145.75,5.54011689]
[1750808802893,10.66510341,145.8,145.75,5.54011689]
[1750808803096,0.6859181,145.79,145.75,5.54011689]
[1750808804592,6.2259733,145.81,145.77,5.54011689]
[1750808804787,5.1247545,145.8,145.77,5.54011689]
[1750808805089,6.2259733,145.81,145.77,5.54011689]
[1750808805289,5.81065898,145.8,145.77,5.54011689]
[1750808805492,0.68590409,145.8,145.76,5.54011689]
[1750808805671,0.68590409,145.8,145.77,5.54011689]
[1750808806611,0.68590409,145.8,145.75,5.54011689]
[1750808806612,10.66440613,145.79,145.75,5.54011689]
[1750808806775,5.54011689,145.78,145.72,1.5956]
[1750808806980,5.54011689,145.78,145.74,5.54011689]
[1750808808795,0.68601221,145.77,145.74,5.54011689]
[1750808808983,0.68598109,145.78,145.75,5.54011689]
[1750808809175,0.68598109,145.78,145.74,5.54011689]
[1750808810496,11.34783129,145.79,145.75,5.54011689]
[1750808810793,6.22605362,145.79,145.75,5.54011689]
[1750808810998,11.34783129,145.79,145.75,5.54011689]
[1750808811403,5.8077144,145.79,145.75,5.54011689]
[1750808811786,5.8077144,145.79,145.76,5.54011689]
[1750808812616,5.12177767,145.79,145.76,5.54011689]
[1750808812793,5.54011689,145.77,145.72,5.54011689]
[1750808813108,10.66189456,145.78,145.73,5.54011689]
[1750808813909,10.66189456,145.78,145.74,5.54011689]
[1750808814481,5.12177767,145.78,145.75,5.54011689]
[1750808814718,6.2425,145.81,145.77,5.54011689]
[1750808814719,5.12177767,145.81,145.77,5.54011689]
[1750808815688,0.68588029,145.8,145.78,5.54011689]
[1750808816293,0.68588029,145.8,145.77,5.54011689]
[1750808822414,0.68588029,145.8,145.76,5.54011689]
[1750808823116,11.34777485,145.8,145.76,5.54011689]
[1750808823506,5.54011689,145.77,145.72,5.54011689]
[1750808823715,5.54011689,145.77,145.71,5.54011689]
[1750808823716,5.54011689,145.75,145.71,5.54011689]
[1750808823900,5.54011689,145.76,145.71,5.54011689]
[1750808824306,0.68610634,145.75,145.71,5.54011689]
[1750808824905,0.68610634,145.75,145.69,26.0]
[1750808824906,0.68610634,145.75,145.72,5.54011689]
[1750808825414,0.68607894,145.76,145.72,5.54011689]
[1750808825615,6.84603502,145.77,145.73,5.54011689]
[1750808825812,6.84603502,145.77,145.74,5.54011689]
[1750808825999,6.16,145.77,145.75,5.54011689]
[1750808827107,28.94598317,145.78,145.75,5.54011689]
[1750808828513,0.68598317,145.78,145.75,5.54011689]
[1750808828902,5.11738701,145.79,145.76,5.54011689]
[1750808829146,6.16,145.8,145.76,5.54011689]
[1750808829420,6.84588412,145.8,145.76,12.4006128]
[1750808829622,6.84588412,145.8,145.77,5.54011689]
[1750808832119,6.16,145.8,145.77,5.54011689]
[1750808833819,5.80125806,145.81,145.78,5.54011689]
[1750808834213,5.80125806,145.81,145.77,5.54011689]
[1750808834728,0.68584167,145.81,145.77,5.54011689]
[1750808835815,5.12050288,145.8,145.77,5.54011689]
[1750808836123,6.84579381,145.82,145.79,5.54011689]
[1750808836424,5.12016885,145.81,145.79,5.54011689]
[1750808837223,6.84579381,145.82,145.77,88.7]
[1750808837431,5.12149382,145.81,145.78,5.54011689]
[1750808837627,12.3859107,145.82,145.77,88.7]
[1750808837827,5.12288471,145.81,145.77,94.24011689]
[1750808838010,12.3859107,145.82,145.77,94.24011689]
[1750808838210,5.12293477,145.81,145.77,94.24011689]
[1750808838412,12.3859107,145.82,145.77,94.24011689]
[1750808838708,5.12419106,145.81,145.77,94.24011689]
[1750808838903,12.3859107,145.82,145.78,5.54011689]
[1750808838904,6.84579381,145.82,145.78,5.54011689]
[1750808839103,5.12412604,145.81,145.78,5.54011689]
[1750808839314,6.84579381,145.82,145.78,5.54011689]
[1750808839515,5.12426315,145.81,145.78,5.54011689]
[1750808839732,6.84579381,145.82,145.78,5.54011689]
[1750808839918,5.12539775,145.81,145.78,5.54011689]
[1750808840111,6.84579381,145.82,145.78,5.54011689]
[1750808840311,5.12542677,145.81,145.78,5.54011689]
[1750808840530,6.84579381,145.82,145.78,5.54011689]
[1750808840835,5.12687121,145.81,145.78,5.54011689]
[1750808841132,6.84579381,145.82,145.78,5.54011689]
[1750808841433,5.81271385,145.81,145.78,5.54011689]
[1750808841628,5.12836996,145.8,145.78,5.54011689]
[1750808841826,0.68584184,145.81,145.78,5.54011689]
[1750808842134,5.12834915,145.8,145.77,5.54011689]
[1750808842328,0.68584184,145.81,145.77,5.54011689]
[1750808842633,5.12850557,145.8,145.77,5.54011689]
[1750808842859,5.13032074,145.79,145.76,88.7]
[1750808843007,10.67132811,145.78,145.74,5.54011689]
[1750808843331,5.81723042,145.77,145.74,5.54011689]
[1750808843511,0.6860192,145.77,145.74,5.54011689]
[1750808843915,0.6860192,145.77,145.73,5.54011689]
[1750808844424,5.54011689,145.77,145.72,38.40237975]
[1750808845030,5.54011689,145.76,145.72,38.40237975]
[1750808845421,5.54011689,145.77,145.72,38.40237975]
[1750808845736,5.13220863,145.76,145.72,38.40237975]
[1750808845912,6.22616383,145.77,145.72,38.40237975]
[1750808846106,5.13221687,145.76,145.72,38.40237975]
[1750808846309,6.22616383,145.77,145.72,38.40237975]
[1750808846511,5.13200112,145.76,145.72,38.40237975]
[1750808846818,6.22616383,145.77,145.72,38.40237975]
[1750808847025,5.1324221,145.76,145.72,38.40237975]
[1750808847227,6.22616383,145.77,145.72,38.40237975]
[1750808847432,5.13223036,145.76,145.72,38.40237975]
[1750808847735,6.22616383,145.77,145.72,38.40237975]
[1750808847944,5.13212362,145.76,145.72,38.40237975]
[1750808848141,6.22616383,145.77,145.72,38.40237975]
[1750808848446,5.81815984,145.76,145.73,5.54011689]
[1750808848621,0.68606529,145.76,145.73,5.54011689]
[1750808850031,0.68606529,145.76,145.71,1.5999]
[1750808850032,6.22618218,145.76,145.71,6.86279615]
[1750808850236,6.22618218,145.76,145.72,5.54011689]
[1750808853928,0.68606529,145.76,145.73,5.54011689]
[1750808856644,0.68606529,145.76,145.71,95.5628328]
[1750808856834,6.22618218,145.76,145.72,5.54011689]
[1750808857032,6.22618218,145.76,145.71,88.7]
[1750808857227,12.36618218,145.76,145.71,94.24011689]
[1750808858260,11.68011689,145.76,145.71,94.24011689]
[1750808858427,0.68612862,145.75,145.71,94.24011689]
[1750808858764,10.66905853,145.74,145.69,5.54011689]
[1750808858922,6.22624551,145.75,145.7,5.54011689]
[1750808859122,0.68612862,145.75,145.71,5.54011689]
[1750808859763,6.14,145.76,145.69,6.86381399]
[1750808860054,6.14,145.76,145.73,5.54011689]
[1750808860261,6.82606565,145.76,145.73,5.54011689]
[1750808860761,6.82606565,145.76,145.72,5.54011689]
[1750808860945,12.36618254,145.76,145.72,5.54011689]
[1750808861339,6.22618254,145.76,145.72,5.54011689]
[1750808866331,6.22618254,145.76,145.71,94.24011689]
[1750808867741,5.54011689,145.74,145.71,88.7]
[1750808867942,29.31731975,145.75,145.71,88.7]
[1750808868144,24.18976575,145.75,145.71,88.7]
[1750808868343,5.12755361,145.74,145.71,88.7]
[1750808868758,24.18976575,145.75,145.71,88.7]
[1750808868950,5.12700388,145.74,145.71,88.7]
[1750808869253,0.68615342,145.74,145.7,5.54011689]
[1750808869452,5.81266749,145.74,145.7,5.54011689]
[1750808870737,5.81266749,145.74,145.71,5.54011689]
[1750808870959,0.68612448,145.75,145.71,5.54011689]
[1750808871255,0.68612448,145.75,145.72,5.54011689]
[1750808873261,5.81117959,145.75,145.71,5.54011689]
[1750808875262,11.35129648,145.75,145.71,5.54011689]
[1750808878143,11.35129648,145.75,145.7,94.24011689]
[1750808878351,5.12559911,145.74,145.7,94.24011689]
[1750808879270,10.665716,145.74,145.7,94.24011689]
[1750808880171,0.6862005,145.73,145.69,5.54011689]
[1750808880347,5.54011689,145.72,145.68,5.54011689]
[1750808880546,10.6671642,145.72,145.68,5.54011689]
[1750808880942,5.54011689,145.72,145.68,5.54011689]
[1750808881364,1.6594,145.76,145.71,5.54011689]
[1750808881694,10.66734545,145.75,145.7,5.54011689]
[1750808881851,5.12722856,145.74,145.68,1.6402]
[1750808882050,5.12722856,145.74,145.7,5.54011689]
[1750808882251,5.8134236,145.74,145.7,5.54011689]
[1750808882451,0.68619504,145.74,145.7,5.54011689]
[1750808883577,0.68619504,145.74,145.71,5.54011689]
[1750808883973,5.81481423,145.75,145.71,5.54011689]
[1750808884278,5.12869209,145.74,145.71,5.54011689]
[1750808884474,0.68612175,145.75,145.71,5.54011689]
[1750808884766,5.13013862,145.74,145.71,5.54011689]
[1750808884948,0.68612175,145.75,145.71,5.54011689]
[1750808885268,5.13016769,145.74,145.71,5.54011689]
[1750808885450,0.68612175,145.75,145.71,5.54011689]
[1750808885655,5.13184864,145.74,145.71,5.54011689]
[1750808885967,0.68612175,145.75,145.71,5.54011689]
[1750808886167,5.13184904,145.74,145.71,5.54011689]
[1750808886370,5.13184904,145.74,145.68,1.6402]
[1750808886371,6.22628952,145.74,145.69,5.54011689]
[1750808886580,10.67428098,145.73,145.69,5.54011689]